[Event "SS Manhem Chess Week 2022: IM Tournament"]
[Site "Schackcentrum, Vegagatan 20, Gothenburg, Sweden"]
[Date "2022.08.12"]
[Round "9.1"]
[White "Kucuksari, Kaan"]
[Black "Pantzar, Milton"]
[Result "1/2-1/2"]
[TimeControl "90 minutes for 40 moves + 30 minutes for the rest of the game + 30 seconds per move from move one."]
[WhiteTitle "FM"]
[BlackTitle "IM"]
[WhiteFideId "6380166"]
[BlackFideId "1721003"]
[WhiteElo "2398"]
[BlackElo "2447"]

1. d4 {[%clk 01:28:16]} {[%emt 00:02:44]} d5 {[%clk 01:30:37]} {[%emt
00:00:23]} 2. c4 {[%clk 01:28:40]} {[%emt 00:00:06]} e6 {[%clk 01:30:51]}
{[%emt 00:00:15]} 3. Nf3 {[%clk 01:29:05]} {[%emt 00:00:06]} Nf6 {[%clk
01:31:11]} {[%emt 00:00:10]} 4. g3 {[%clk 01:29:29]} {[%emt 00:00:06]} Be7
{[%clk 01:30:55]} {[%emt 00:00:46]} 5. Bg2 {[%clk 01:29:55]} {[%emt 00:00:05]}
O-O {[%clk 01:31:15]} {[%emt 00:00:09]} 6. O-O {[%clk 01:30:22]} {[%emt
00:00:02]} c6 {[%clk 01:31:07]} {[%emt 00:00:39]} 7. Qc2 {[%clk 01:30:39]}
{[%emt 00:00:13]} b6 {[%clk 01:30:27]} {[%emt 00:01:09]} 8. b3 {[%clk
01:29:12]} {[%emt 00:01:58]} Nbd7 {[%clk 01:23:40]} {[%emt 00:07:17]} 9. Rd1
{[%clk 01:29:34]} {[%emt 00:00:08]} a5 {[%clk 01:14:57]} {[%emt 00:09:13]} 10.
Nbd2 {[%clk 01:21:28]} {[%emt 00:08:36]} Bb7 {[%clk 01:13:11]} {[%emt
00:02:16]} 11. e4 {[%clk 01:20:00]} {[%emt 00:01:58]} a4 {[%clk 01:07:24]}
{[%emt 00:06:17]} 12. Bb2 {[%clk 01:17:21]} {[%emt 00:03:08]} axb3 {[%clk
00:57:24]} {[%emt 00:10:31]} 13. axb3 {[%clk 01:17:39]} {[%emt 00:00:12]} Rxa1
{[%clk 00:57:40]} {[%emt 00:00:14]} 14. Rxa1 {[%clk 01:07:04]} {[%emt
00:11:05]} dxe4 {[%clk 00:50:14]} {[%emt 00:07:56]} 15. Nxe4 {[%clk 01:06:23]}
{[%emt 00:01:11]} c5 {[%clk 00:48:25]} {[%emt 00:02:19]} 16. Nfg5 {[%clk
00:48:40]} {[%emt 00:18:13]} Bxe4 {[%clk 00:45:37]} {[%emt 00:03:18]} 17. Nxe4
{[%clk 00:48:22]} {[%emt 00:00:48]} Nxe4 {[%clk 00:44:34]} {[%emt 00:01:33]} 18.
Qxe4 {[%clk 00:33:34]} {[%emt 00:15:18]} Bf6 {[%clk 00:38:34]} {[%emt
00:06:30]} 19. Qe3 {[%clk 00:31:13]} {[%emt 00:02:50]} Nb8 {[%clk 00:32:39]}
{[%emt 00:06:26]} 20. Qd2 {[%clk 00:23:26]} {[%emt 00:08:18]} Bxd4 {[%clk
00:28:55]} {[%emt 00:04:15]} 21. Bxd4 {[%clk 00:21:50]} {[%emt 00:02:06]} cxd4
{[%clk 00:28:19]} {[%emt 00:01:04]} 22. Rd1 {[%clk 00:21:45]} {[%emt 00:00:35]}
e5 {[%clk 00:25:51]} {[%emt 00:02:59]} 23. Bd5 {[%clk 00:21:31]} {[%emt
00:00:45]} Kh8 {[%clk 00:23:41]} {[%emt 00:02:40]} 24. Re1 {[%clk 00:16:35]}
{[%emt 00:05:26]} Qd6 {[%clk 00:22:11]} {[%emt 00:02:00]} 25. f4 {[%clk
00:15:08]} {[%emt 00:01:57]} Nd7 {[%clk 00:19:30]} {[%emt 00:03:12]} 26. fxe5
{[%clk 00:12:17]} {[%emt 00:03:21]} Nxe5 {[%clk 00:19:53]} {[%emt 00:00:07]} 27.
Qf4 {[%clk 00:12:15]} {[%emt 00:00:31]} f6 {[%clk 00:18:40]} {[%emt 00:01:45]}
28. Rd1 {[%clk 00:12:30]} {[%emt 00:00:13]} Qb4 {[%clk 00:15:37]} {[%emt
00:03:34]} 29. Qxd4 {[%clk 00:11:08]} {[%emt 00:01:52]} Qxb3 {[%clk 00:15:17]}
{[%emt 00:00:50]} 30. Rd2 {[%clk 00:10:39]} {[%emt 00:00:57]} Qa3 {[%clk
00:07:21]} {[%emt 00:08:27]} 31. Kg2 {[%clk 00:08:35]} {[%emt 00:02:33]} Qc5
{[%clk 00:06:38]} {[%emt 00:01:14]} 32. Qxc5 {[%clk 00:06:53]} {[%emt
00:02:13]} bxc5 {[%clk 00:07:06]} {[%emt 00:00:02]} 33. Rb2 {[%clk 00:07:15]}
{[%emt 00:00:07]} h5 {[%clk 00:06:21]} {[%emt 00:01:16]} 34. h3 {[%clk
00:04:27]} {[%emt 00:03:18]} Kh7 {[%clk 00:05:20]} {[%emt 00:01:31]} 35. Rb5
{[%clk 00:04:07]} {[%emt 00:00:50]} Rc8 {[%clk 00:05:37]} {[%emt 00:00:13]} 36.
Kf2 {[%clk 00:03:36]} {[%emt 00:01:01]} Rc7 {[%clk 00:05:13]} {[%emt 00:00:55]}
37. Ke3 {[%clk 00:03:54]} {[%emt 00:00:11]} Kg6 {[%clk 00:04:28]} {[%emt
00:01:15]} 38. Kf4 {[%clk 00:01:50]} {[%emt 00:02:32]} Nd3+ {[%clk 00:03:31]}
{[%emt 00:01:28]} 39. Ke3 {[%clk 00:01:16]} {[%emt 00:01:04]} Ne5 {[%clk
00:03:28]} {[%emt 00:00:33]} 40. Kf4 {[%clk 00:01:29]} {[%emt 00:00:17]} Nd3+
{[%clk 00:02:39]} {[%emt 00:01:20]} 41. Kf3 {[%clk 00:28:34]} {[%emt 00:03:18]}
Ne5+ {[%clk 00:30:22]} {[%emt 00:02:54]} 42. Kf4 {[%clk 00:28:15]} 1/2-1/2

[Event "SS Manhem Chess Week 2022: IM Tournament"]
[Site "Schackcentrum, Vegagatan 20, Gothenburg, Sweden"]
[Date "2022.08.12"]
[Round "9.2"]
[White "Ingebretsen, Jens E"]
[Black "Heimisson, Hilmir Freyr"]
[Result "1-0"]
[TimeControl "90 minutes for 40 moves + 30 minutes for the rest of the game + 30 seconds per move from move one."]
[WhiteTitle "FM"]
[BlackTitle "IM"]
[WhiteFideId "1522965"]
[BlackFideId "2309998"]
[WhiteElo "2325"]
[BlackElo "2323"]

1. c4 {[%clk 01:30:58]} {[%emt 00:00:01]} Nf6 {[%clk 01:25:59]} {[%emt
00:05:02]} 2. Nc3 {[%clk 01:31:23]} {[%emt 00:00:05]} e6 {[%clk 01:24:02]}
{[%emt 00:02:27]} 3. e4 {[%clk 01:31:24]} {[%emt 00:00:29]} d5 {[%clk
01:23:56]} {[%emt 00:00:36]} 4. cxd5 {[%clk 01:31:19]} {[%emt 00:00:36]} exd5
{[%clk 01:24:19]} {[%emt 00:00:07]} 5. e5 {[%clk 01:31:44]} {[%emt 00:00:04]}
Ne4 {[%clk 01:24:30]} {[%emt 00:00:19]} 6. Nf3 {[%clk 01:30:45]} {[%emt
00:01:29]} Bf5 {[%clk 01:00:08]} {[%emt 00:24:53]} 7. Qb3 {[%clk 01:26:18]}
{[%emt 00:04:57]} d4 {[%clk 00:55:19]} {[%emt 00:05:19]} 8. Nxe4 {[%clk
01:20:37]} {[%emt 00:06:11]} Bxe4 {[%clk 00:55:00]} {[%emt 00:00:48]} 9. Bc4
{[%clk 01:21:01]} {[%emt 00:00:06]} Qe7 {[%clk 00:43:53]} {[%emt 00:11:38]} 10.
O-O {[%clk 01:17:04]} {[%emt 00:04:27]} Nc6 {[%clk 00:37:10]} {[%emt 00:07:13]}
11. Re1 {[%clk 01:13:23]} {[%emt 00:04:11]} Bxf3 {[%clk 00:33:27]} {[%emt
00:04:12]} 12. Qxf3 {[%clk 01:13:41]} {[%emt 00:00:12]} O-O-O {[%clk 00:32:32]}
{[%emt 00:01:25]} 13. d3 {[%clk 01:07:48]} {[%emt 00:06:23]} f6 {[%clk
00:30:03]} {[%emt 00:02:59]} 14. Qg3 {[%clk 01:02:36]} {[%emt 00:05:43]} Qe8
{[%clk 00:24:18]} {[%emt 00:06:15]} 15. f4 {[%clk 01:00:49]} {[%emt 00:02:17]}
Bb4 {[%clk 00:24:03]} {[%emt 00:00:45]} 16. Re4 {[%clk 01:00:29]} {[%emt
00:00:50]} Qh5 {[%clk 00:18:53]} {[%emt 00:05:40]} 17. Be6+ {[%clk 00:59:33]}
{[%emt 00:01:25]} Kb8 {[%clk 00:19:17]} {[%emt 00:00:07]} 18. Bg4 {[%clk
00:59:57]} {[%emt 00:00:05]} Qf7 {[%clk 00:19:16]} {[%emt 00:00:31]} 19. a3
{[%clk 00:54:55]} {[%emt 00:05:33]} Ba5 {[%clk 00:18:33]} {[%emt 00:01:13]} 20.
e6 {[%clk 00:52:10]} {[%emt 00:03:15]} Qe7 {[%clk 00:17:29]} {[%emt 00:01:34]}
21. b4 {[%clk 00:50:39]} {[%emt 00:02:01]} Bb6 {[%clk 00:17:49]} {[%emt
00:00:10]} 22. Bd2 {[%clk 00:50:49]} {[%emt 00:00:20]} g6 {[%clk 00:15:31]}
{[%emt 00:02:48]} 23. Re2 {[%clk 00:46:57]} {[%emt 00:04:22]} f5 {[%clk
00:11:39]} {[%emt 00:04:23]} 24. Bf3 {[%clk 00:47:04]} {[%emt 00:00:23]} Rd6
{[%clk 00:04:07]} {[%emt 00:08:02]} 25. b5 {[%clk 00:45:47]} {[%emt 00:01:47]}
Na5 {[%clk 00:04:20]} {[%emt 00:00:18]} 26. Bb4 {[%clk 00:45:38]} {[%emt
00:00:39]} Nb3 {[%clk 00:04:26]} {[%emt 00:00:24]} 27. Bxd6 {[%clk 00:41:17]}
{[%emt 00:04:50]} cxd6 {[%clk 00:04:51]} {[%emt 00:00:05]} 28. Rb1 {[%clk
00:41:02]} {[%emt 00:00:45]} Nc5 {[%clk 00:04:42]} {[%emt 00:00:39]} 29. Rd1
{[%clk 00:39:18]} {[%emt 00:02:14]} Na4 {[%clk 00:02:50]} {[%emt 00:02:23]} 30.
Ra1 {[%clk 00:37:13]} {[%emt 00:02:35]} Re8 {[%clk 00:02:20]} {[%emt 00:00:59]}
31. Qh3 {[%clk 00:24:37]} {[%emt 00:13:07]} Nc3 {[%clk 00:01:38]} {[%emt
00:01:12]} 32. Ree1 {[%clk 00:24:57]} {[%emt 00:00:09]} h5 {[%clk 00:00:52]}
{[%emt 00:01:17]} 33. g3 {[%clk 00:25:01]} {[%emt 00:00:26]} Qf6 {[%clk
00:00:46]} {[%emt 00:00:36]} 34. Qg2 {[%clk 00:23:58]} {[%emt 00:01:32]} Qe7
{[%clk 00:00:36]} {[%emt 00:00:40]} 35. h3 {[%clk 00:23:39]} {[%emt 00:00:49]}
Rc8 {[%clk 00:00:39]} {[%emt 00:00:27]} 36. g4 {[%clk 00:23:03]} {[%emt
00:01:06]} hxg4 {[%clk 00:00:46]} {[%emt 00:00:23]} 37. hxg4 {[%clk 00:23:27]}
{[%emt 00:00:05]} d5 {[%clk 00:00:37]} {[%emt 00:00:40]} 38. gxf5 {[%clk
00:16:41]} {[%emt 00:07:16]} gxf5 {[%clk 00:01:06]} 39. Qg5 {[%clk 00:16:48]}
{[%emt 00:00:23]} Bc5 {[%clk 00:00:55]} {[%emt 00:00:41]} 40. a4 {[%clk
00:13:02]} {[%emt 00:04:16]} Qh7 {[%clk 00:00:35]} {[%emt 00:00:50]} 41. e7
{[%clk 00:29:44]} {[%emt 00:13:48]} Re8 {[%clk 00:07:51]} {[%emt 00:23:13]} 42.
Qh5 {[%clk 00:25:13]} {[%emt 00:05:02]} Qg7+ {[%clk 00:04:43]} {[%emt
00:03:37]} 43. Kf1 {[%clk 00:22:05]} {[%emt 00:03:38]} Rxe7 {[%clk 00:03:36]}
{[%emt 00:01:37]} 44. Rxe7 {[%clk 00:22:11]} {[%emt 00:00:23]} Bxe7 {[%clk
00:01:01]} {[%emt 00:03:05]} 45. Qxf5 {[%clk 00:21:37]} {[%emt 00:01:05]} Bd6
{[%clk 00:00:36]} {[%emt 00:00:54]} 46. Re1 {[%clk 00:19:07]} {[%emt 00:03:00]}
Qg3 {[%clk 00:00:42]} {[%emt 00:00:24]} 47. Qh5 {[%clk 00:12:30]} {[%emt
00:07:08]} Qxf4 {[%clk 00:00:39]} {[%emt 00:00:34]} 48. a5 {[%clk 00:12:32]}
{[%emt 00:00:28]} Nxb5 {[%clk 00:00:41]} {[%emt 00:00:27]} 49. Qxd5 {[%clk
00:12:36]} {[%emt 00:00:27]} Kc8 {[%clk 00:00:41]} {[%emt 00:00:31]} 50. Re8+
{[%clk 00:12:36]} {[%emt 00:00:30]} 1-0

[Event "SS Manhem Chess Week 2022: IM Tournament"]
[Site "Schackcentrum, Vegagatan 20, Gothenburg, Sweden"]
[Date "2022.08.12"]
[Round "9.3"]
[White "Ernst, Thomas"]
[Black "Mitusov, Semen"]
[Result "0-1"]
[TimeControl "90 minutes for 40 moves + 30 minutes for the rest of the game + 30 seconds per move from move one."]
[WhiteTitle "GM"]
[BlackTitle "FM"]
[WhiteFideId "1700065"]
[BlackFideId "14151049"]
[WhiteElo "2323"]
[BlackElo "2415"]

1. e4 {[%clk 01:30:56]} {[%emt 00:00:04]} e5 {[%clk 01:30:49]} {[%emt
00:00:10]} 2. Nf3 {[%clk 01:31:17]} {[%emt 00:00:08]} Nc6 {[%clk 01:31:13]}
{[%emt 00:00:06]} 3. Bb5 {[%clk 01:31:40]} {[%emt 00:00:07]} a6 {[%clk
01:31:39]} {[%emt 00:00:05]} 4. Ba4 {[%clk 01:32:05]} {[%emt 00:00:05]} Nf6
{[%clk 01:31:50]} {[%emt 00:00:19]} 5. O-O {[%clk 01:32:26]} {[%emt 00:00:08]}
b5 {[%clk 01:31:45]} {[%emt 00:00:37]} 6. Bb3 {[%clk 01:32:49]} {[%emt
00:00:06]} Bc5 {[%clk 01:32:11]} {[%emt 00:00:04]} 7. a4 {[%clk 01:33:01]}
{[%emt 00:00:18]} Rb8 {[%clk 01:32:33]} {[%emt 00:00:08]} 8. Nxe5 {[%clk
01:33:05]} {[%emt 00:00:26]} Nxe5 {[%clk 01:28:23]} {[%emt 00:04:41]} 9. d4
{[%clk 01:33:28]} {[%emt 00:00:06]} Bxd4 {[%clk 01:25:03]} {[%emt 00:03:51]} 10.
Qxd4 {[%clk 01:33:49]} {[%emt 00:00:09]} d6 {[%clk 01:25:22]} {[%emt 00:00:12]}
11. f3 {[%clk 01:33:56]} {[%emt 00:00:22]} c5 {[%clk 01:20:59]} {[%emt
00:04:53]} 12. Qf2 {[%clk 01:34:10]} {[%emt 00:00:14]} O-O {[%clk 01:20:27]}
{[%emt 00:01:04]} 13. Be3 {[%clk 01:28:04]} {[%emt 00:06:34]} c4 {[%clk
01:16:08]} {[%emt 00:04:51]} 14. Ba2 {[%clk 01:28:23]} {[%emt 00:00:11]} Qc7
{[%clk 01:11:08]} {[%emt 00:05:30]} 15. Bd4 {[%clk 01:21:55]} {[%emt 00:06:57]}
Re8 {[%clk 01:08:29]} {[%emt 00:03:10]} 16. Nd2 {[%clk 01:13:33]} {[%emt
00:08:52]} Bb7 {[%clk 01:02:55]} {[%emt 00:06:05]} 17. axb5 {[%clk 01:11:27]}
{[%emt 00:02:35]} axb5 {[%clk 01:03:19]} {[%emt 00:00:06]} 18. Rae1 {[%clk
01:11:49]} {[%emt 00:00:07]} d5 {[%clk 00:59:40]} {[%emt 00:04:11]} 19. exd5
{[%clk 01:07:19]} {[%emt 00:05:00]} Nxd5 {[%clk 00:51:48]} {[%emt 00:08:21]} 20.
Qg3 {[%clk 01:05:29]} {[%emt 00:02:18]} Ng6 {[%clk 00:49:09]} {[%emt 00:03:11]}
21. Qxc7 {[%clk 01:02:36]} {[%emt 00:03:24]} Nxc7 {[%clk 00:49:34]} {[%emt
00:00:04]} 22. Bb1 {[%clk 01:00:30]} {[%emt 00:02:36]} Ne6 {[%clk 00:46:19]}
{[%emt 00:03:46]} 23. Be3 {[%clk 00:59:49]} {[%emt 00:01:10]} Rbd8 {[%clk
00:41:56]} {[%emt 00:04:54]} 24. c3 {[%clk 00:57:39]} {[%emt 00:02:39]} Ngf4
{[%clk 00:41:49]} {[%emt 00:00:38]} 25. Ne4 {[%clk 00:56:34]} {[%emt 00:01:34]}
Bxe4 {[%clk 00:32:47]} {[%emt 00:09:33]} 26. Bxe4 {[%clk 00:56:27]} {[%emt
00:00:37]} Nd3 {[%clk 00:33:11]} {[%emt 00:00:06]} 27. Bxd3 {[%clk 00:55:51]}
{[%emt 00:01:06]} Rxd3 {[%clk 00:32:15]} {[%emt 00:01:26]} 28. Kf2 {[%clk
00:54:25]} {[%emt 00:01:54]} Red8 {[%clk 00:30:39]} {[%emt 00:02:08]} 29. Ra1
{[%clk 00:45:42]} {[%emt 00:09:12]} g5 {[%clk 00:28:41]} {[%emt 00:02:28]} 30.
Ke2 {[%clk 00:40:33]} {[%emt 00:05:39]} f5 {[%clk 00:24:52]} {[%emt 00:04:20]}
31. Rfd1 {[%clk 00:39:52]} {[%emt 00:01:09]} f4 {[%clk 00:24:49]} {[%emt
00:00:35]} 32. Bf2 {[%clk 00:39:35]} {[%emt 00:00:46]} Rxd1 {[%clk 00:23:23]}
{[%emt 00:01:58]} 33. Rxd1 {[%clk 00:39:58]} {[%emt 00:00:07]} Rxd1 {[%clk
00:23:49]} {[%emt 00:00:04]} 34. Kxd1 {[%clk 00:40:22]} {[%emt 00:00:06]} Kf7
{[%clk 00:22:42]} {[%emt 00:01:37]} {White's phone was turned on and made a
sound.} 0-1

[Event "SS Manhem Chess Week 2022: IM Tournament"]
[Site "Schackcentrum, Vegagatan 20, Gothenburg, Sweden"]
[Date "2022.08.12"]
[Round "9.4"]
[White "Jacobsen, Mikkel Manosri"]
[Black "Rydstrom, Tom"]
[Result "0-1"]
[TimeControl "90 minutes for 40 moves + 30 minutes for the rest of the game + 30 seconds per move from move one."]
[WhiteTitle "FM"]
[BlackTitle "FM"]
[WhiteFideId "1444514"]
[BlackFideId "1714830"]
[WhiteElo "2320"]
[BlackElo "2304"]

1. d4 {[%clk 01:30:56]} {[%emt 00:00:04]} d5 {[%clk 01:28:50]} {[%emt
00:02:10]} 2. c4 {[%clk 01:31:08]} {[%emt 00:00:18]} e6 {[%clk 01:29:14]}
{[%emt 00:00:06]} 3. Nc3 {[%clk 01:30:40]} {[%emt 00:00:58]} Nf6 {[%clk
01:28:14]} {[%emt 00:01:29]} 4. cxd5 {[%clk 01:30:25]} {[%emt 00:00:45]} exd5
{[%clk 01:28:35]} {[%emt 00:00:08]} 5. Bg5 {[%clk 01:30:50]} {[%emt 00:00:06]}
c6 {[%clk 01:28:49]} {[%emt 00:00:17]} 6. e3 {[%clk 01:30:45]} {[%emt
00:00:35]} Be7 {[%clk 01:29:12]} {[%emt 00:00:07]} 7. Bd3 {[%clk 01:31:08]}
{[%emt 00:00:06]} Nbd7 {[%clk 01:28:37]} {[%emt 00:01:06]} 8. Qc2 {[%clk
01:30:42]} {[%emt 00:00:56]} Nf8 {[%clk 01:28:56]} {[%emt 00:00:11]} 9. Nf3
{[%clk 01:29:55]} {[%emt 00:01:17]} Ne6 {[%clk 01:27:50]} {[%emt 00:01:36]} 10.
Bh4 {[%clk 01:29:25]} {[%emt 00:00:59]} g6 {[%clk 01:27:39]} {[%emt 00:00:42]}
11. h3 {[%clk 01:23:49]} {[%emt 00:06:06]} Ng7 {[%clk 01:27:58]} {[%emt
00:00:11]} 12. g4 {[%clk 01:23:56]} {[%emt 00:00:22]} O-O {[%clk 01:24:35]}
{[%emt 00:03:53]} 13. Bg3 {[%clk 01:17:27]} {[%emt 00:06:59]} Re8 {[%clk
01:22:36]} {[%emt 00:02:30]} 14. O-O-O {[%clk 01:16:21]} {[%emt 00:01:35]} Be6
{[%clk 01:20:48]} {[%emt 00:02:19]} 15. Kb1 {[%clk 01:15:16]} {[%emt 00:01:35]}
Rc8 {[%clk 01:19:58]} {[%emt 00:01:20]} 16. Ne5 {[%clk 01:13:14]} {[%emt
00:02:31]} c5 {[%clk 01:18:31]} {[%emt 00:01:58]} 17. Bb5 {[%clk 01:10:12]}
{[%emt 00:03:32]} Rf8 {[%clk 01:18:45]} {[%emt 00:00:16]} 18. dxc5 {[%clk
01:05:35]} {[%emt 00:05:07]} Rxc5 {[%clk 01:18:09]} {[%emt 00:01:06]} 19. f3
{[%clk 00:57:39]} {[%emt 00:08:25]} Qa5 {[%clk 01:17:05]} {[%emt 00:01:34]} 20.
Qa4 {[%clk 00:46:09]} {[%emt 00:12:00]} Qb6 {[%clk 01:11:01]} {[%emt 00:06:35]}
21. Be1 {[%clk 00:45:55]} {[%emt 00:00:43]} a6 {[%clk 01:08:05]} {[%emt
00:03:27]} 22. Be2 {[%clk 00:45:52]} {[%emt 00:00:32]} Ra5 {[%clk 00:40:55]}
{[%emt 00:27:41]} 23. Qd4 {[%clk 00:44:52]} {[%emt 00:01:29]} Bc5 {[%clk
00:38:50]} {[%emt 00:02:35]} 24. Qf4 {[%clk 00:45:07]} {[%emt 00:00:14]} d4
{[%clk 00:23:52]} {[%emt 00:15:30]} 25. exd4 {[%clk 00:44:04]} {[%emt
00:01:32]} Ba3 {[%clk 00:22:31]} {[%emt 00:01:52]} 26. Qd2 {[%clk 00:39:32]}
{[%emt 00:05:02]} Rc8 {[%clk 00:20:47]} {[%emt 00:02:15]} 27. d5 {[%clk
00:35:13]} {[%emt 00:04:48]} Nxd5 {[%clk 00:19:36]} {[%emt 00:01:42]} 28. Nc4
{[%clk 00:35:01]} {[%emt 00:00:42]} Nxc3+ {[%clk 00:17:28]} {[%emt 00:02:37]}
29. Qxc3 {[%clk 00:35:18]} {[%emt 00:00:12]} Bxc4 {[%clk 00:17:20]} {[%emt
00:00:38]} 30. Bxc4 {[%clk 00:34:58]} {[%emt 00:00:50]} Rxc4 {[%clk 00:16:16]}
{[%emt 00:01:35]} 31. Qb3 {[%clk 00:34:24]} {[%emt 00:01:04]} Rb4 {[%clk
00:07:05]} {[%emt 00:09:41]} 32. Bxb4 {[%clk 00:33:23]} {[%emt 00:01:30]} Bxb4
{[%clk 00:07:29]} {[%emt 00:00:07]} 33. a3 {[%clk 00:28:54]} {[%emt 00:04:59]}
Bc5 {[%clk 00:07:47]} {[%emt 00:00:12]} 34. Qxb6 {[%clk 00:28:57]} {[%emt
00:00:27]} Bxb6 {[%clk 00:08:16]} {[%emt 00:00:01]} 35. Rd7 {[%clk 00:29:03]}
{[%emt 00:00:24]} Ne6 {[%clk 00:08:27]} {[%emt 00:00:19]} 36. Rxb7 {[%clk
00:28:49]} {[%emt 00:00:43]} Bd4 {[%clk 00:08:49]} {[%emt 00:00:08]} 37. Rc1
{[%clk 00:25:45]} {[%emt 00:03:34]} Kg7 {[%clk 00:03:15]} {[%emt 00:06:05]} 38.
Rc8 {[%clk 00:23:21]} {[%emt 00:02:53]} Rd5 {[%clk 00:02:44]} {[%emt 00:01:02]}
39. Re8 {[%clk 00:22:29]} {[%emt 00:01:21]} Nc5 {[%clk 00:02:53]} {[%emt
00:00:21]} 40. Ra7 {[%clk 00:22:20]} {[%emt 00:00:39]} Nd3 {[%clk 00:00:40]}
{[%emt 00:02:43]} 41. Rxa6 {[%clk 00:21:39]} {[%emt 00:01:12]} Nxb2 {[%clk
00:29:41]} {[%emt 00:01:29]} 42. a4 {[%clk 00:50:11]} {[%emt 00:01:57]} Nc4
{[%clk 00:30:01]} {[%emt 00:00:09]} 43. Kc2 {[%clk 00:50:13]} {[%emt 00:00:28]}
Bf6 {[%clk 00:25:17]} {[%emt 00:05:14]} 44. Rc8 {[%clk 00:47:35]} {[%emt
00:03:08]} Rd2+ {[%clk 00:14:04]} {[%emt 00:11:44]} 45. Kc1 {[%clk 00:43:43]}
{[%emt 00:04:21]} Bg5 {[%clk 00:12:15]} {[%emt 00:02:19]} 46. Kb1 {[%clk
00:43:25]} {[%emt 00:00:48]} Na3+ {[%clk 00:11:50]} {[%emt 00:00:56]} 47. Ka1
{[%clk 00:43:43]} {[%emt 00:00:12]} Be3 {[%clk 00:10:26]} {[%emt 00:01:54]} 48.
Rc3 {[%clk 00:42:33]} {[%emt 00:01:39]} Bd4 {[%clk 00:10:51]} {[%emt 00:00:06]}
49. Rac6 {[%clk 00:42:58]} {[%emt 00:00:05]} Rc2 {[%clk 00:11:09]} {[%emt
00:00:12]} 50. a5 {[%clk 00:42:43]} {[%emt 00:00:44]} Bxc3+ {[%clk 00:11:32]}
{[%emt 00:00:06]} 0-1